[Event "*** Titled Tuesday Blitz"]
[Site "Chess.com"]
[Date "2020.02.04"]
[Round "9"]
[White "AdrianaNikolova"]
[Black "PNEPaul"]
[Result "1-0"]
[WhiteElo "2385"]
[BlackElo "1842"]
[TimeControl "180+2"]
[EndTime "15:09:58 PST"]
[Termination "AdrianaNikolova won by resignation"]

1. e4 {[%clk 0:03:01.9]} 1... a6 {[%clk 0:03:00]} 2. d4 {[%clk 0:02:57.2]} 2...
d6 {[%clk 0:03:00.9]} 3. Nf3 {[%clk 0:02:56.6]} 3... g6 {[%clk 0:03:02]} 4. a4
{[%clk 0:02:58.1]} 4... Bg7 {[%clk 0:03:02.6]} 5. Nc3 {[%clk 0:02:59.7]} 5...
Nd7 {[%clk 0:03:03.3]} 6. Bg5 {[%clk 0:03:00.9]} 6... h6 {[%clk 0:03:02.9]} 7.
Bf4 {[%clk 0:03:01.7]} 7... e6 {[%clk 0:03:02.6]} 8. Qd2 {[%clk 0:03:01.8]} 8...
Ne7 {[%clk 0:03:02.9]} 9. Bc4 {[%clk 0:03:00.8]} 9... b6 {[%clk 0:03:00.4]} 10.
O-O {[%clk 0:03:01.3]} 10... Bb7 {[%clk 0:03:01.2]} 11. Rfe1 {[%clk 0:03:02.6]}
11... g5 {[%clk 0:02:55.7]} 12. Bg3 {[%clk 0:03:01.5]} 12... O-O {[%clk
0:02:53]} 13. Ba2 {[%clk 0:02:50.2]} 13... e5 {[%clk 0:02:19.1]} 14. Rad1 {[%clk
0:02:48.9]} 14... exd4 {[%clk 0:02:16.5]} 15. Nxd4 {[%clk 0:02:50.8]} 15... Ne5
{[%clk 0:02:11.7]} 16. Nd5 {[%clk 0:02:42.5]} 16... Nxd5 {[%clk 0:02:09.9]} 17.
exd5 {[%clk 0:02:44.4]} 17... Qd7 {[%clk 0:01:46.9]} 18. Qb4 {[%clk 0:02:26.4]}
18... a5 {[%clk 0:01:34.2]} 19. Qa3 {[%clk 0:02:25.4]} 19... Rae8 {[%clk
0:01:27.7]} 20. c4 {[%clk 0:02:25.9]} 20... Ng4 {[%clk 0:01:20.9]} 21. Rxe8
{[%clk 0:02:16]} 21... Rxe8 {[%clk 0:01:21.3]} 22. h3 {[%clk 0:02:17.5]} 22...
Bxd4 {[%clk 0:01:04.8]} 23. hxg4 {[%clk 0:02:18.5]} 23... Be5 {[%clk 0:01:01.4]}
24. Bb1 {[%clk 0:02:12]} 24... Qxg4 {[%clk 0:00:54.3]} 25. Qd3 {[%clk
0:02:07.7]} 25... f5 {[%clk 0:00:51.5]} 26. Re1 {[%clk 0:01:13.7]} 26... Kf7
{[%clk 0:00:17.9]} 27. Bxe5 {[%clk 0:01:07.1]} 27... Rxe5 {[%clk 0:00:16.7]} 28.
Rxe5 {[%clk 0:01:07.3]} 28... dxe5 {[%clk 0:00:17.4]} 29. Qxf5+ {[%clk
0:01:08.3]} 29... Qxf5 {[%clk 0:00:16.3]} 30. Bxf5 {[%clk 0:01:10.2]} 30... Kf6
{[%clk 0:00:15.7]} 31. Bg4 {[%clk 0:01:05.3]} 31... e4 {[%clk 0:00:14.5]} 32.
Kh2 {[%clk 0:00:31]} 32... Ke5 {[%clk 0:00:13.8]} 33. Kg3 {[%clk 0:00:31.6]}
33... Kd4 {[%clk 0:00:14]} 34. Be2 {[%clk 0:00:30.3]} 34... Ke5 {[%clk
0:00:10.4]} 35. Kg4 {[%clk 0:00:31.1]} 35... Kf6 {[%clk 0:00:09.3]} 36. Kh5
{[%clk 0:00:32.5]} 36... Kg7 {[%clk 0:00:09.4]} 37. Bg4 {[%clk 0:00:32.9]} 37...
Ba6 {[%clk 0:00:09.1]} 38. b3 {[%clk 0:00:33.8]} 38... Bb7 {[%clk 0:00:09.9]}
39. Bf5 {[%clk 0:00:30]} 39... Ba6 {[%clk 0:00:10.4]} 40. g3 {[%clk 0:00:27.3]}
40... Bb7 {[%clk 0:00:10.3]} 41. Kg4 {[%clk 0:00:15.2]} 41... Ba6 {[%clk
0:00:10.1]} 42. Bxe4 {[%clk 0:00:16.3]} 42... Bc8+ {[%clk 0:00:10.4]} 43. Bf5
{[%clk 0:00:17]} 43... Bb7 {[%clk 0:00:11]} 44. Kf3 {[%clk 0:00:17.2]} 44... Kf6
{[%clk 0:00:11.9]} 45. Ke4 {[%clk 0:00:16.7]} 45... Ba6 {[%clk 0:00:11.8]} 46.
Bd7 {[%clk 0:00:10.9]} 46... h5 {[%clk 0:00:11.6]} 47. Be8 {[%clk 0:00:11]}
47... h4 {[%clk 0:00:12.4]} 48. gxh4 {[%clk 0:00:12.9]} 48... gxh4 {[%clk
0:00:13.3]} 49. Bd7 {[%clk 0:00:14.4]} 49... Kg5 {[%clk 0:00:13.2]} 50. f4+
{[%clk 0:00:14.9]} 50... Kh5 {[%clk 0:00:12.7]} 51. Kf3 {[%clk 0:00:16.2]} 51...
Bb7 {[%clk 0:00:12.4]} 52. Kg2 {[%clk 0:00:15.3]} 52... Ba6 {[%clk 0:00:12.4]}
53. Kh3 {[%clk 0:00:16.4]} 53... Bb7 {[%clk 0:00:13.4]} 54. Bg4+ {[%clk
0:00:17.7]} 54... Kh6 {[%clk 0:00:14.2]} 55. Kxh4 {[%clk 0:00:19.6]} 55... Kg7
{[%clk 0:00:14.7]} 56. Kg5 {[%clk 0:00:20.5]} 1-0

[Event "*** Titled Tuesday Blitz"]
[Site "Chess.com"]
[Date "2020.02.04"]
[Round "9"]
[White "SARGISMV"]
[Black "Dhaydon19"]
[Result "0-1"]
[WhiteElo "2432"]
[BlackElo "2689"]
[TimeControl "180+2"]
[EndTime "15:10:09 PST"]
[Termination "Dhaydon19 won by checkmate"]

1. d4 {[%clk 0:03:00.2]} 1... c6 {[%clk 0:02:50.1]} 2. c4 {[%clk 0:03:00.9]}
2... d5 {[%clk 0:02:52]} 3. Nf3 {[%clk 0:03:01.1]} 3... Nf6 {[%clk 0:02:53]} 4.
e3 {[%clk 0:03:02.6]} 4... e6 {[%clk 0:02:54.3]} 5. b3 {[%clk 0:03:04]} 5... Bd6
{[%clk 0:02:55.3]} 6. Bb2 {[%clk 0:03:04.3]} 6... O-O {[%clk 0:02:56.7]} 7. Nbd2
{[%clk 0:03:05.4]} 7... Nbd7 {[%clk 0:02:57.7]} 8. Bd3 {[%clk 0:03:06.8]} 8...
Qe7 {[%clk 0:02:57.5]} 9. O-O {[%clk 0:03:07.8]} 9... e5 {[%clk 0:02:58.4]} 10.
dxe5 {[%clk 0:03:06.4]} 10... Nxe5 {[%clk 0:03:00.3]} 11. Nxe5 {[%clk
0:03:05.4]} 11... Bxe5 {[%clk 0:03:02.2]} 12. Bxe5 {[%clk 0:03:06.9]} 12... Qxe5
{[%clk 0:03:04.1]} 13. cxd5 {[%clk 0:02:55.2]} 13... Nxd5 {[%clk 0:03:01.6]} 14.
Nc4 {[%clk 0:02:55.5]} 14... Qe7 {[%clk 0:03:01.4]} 15. Qh5 {[%clk 0:02:48.8]}
15... g6 {[%clk 0:03:00.6]} 16. Qh6 {[%clk 0:02:38.8]} 16... Rd8 {[%clk
0:02:58.2]} 17. Rad1 {[%clk 0:02:38.2]} 17... Bg4 {[%clk 0:02:55.9]} 18. f3
{[%clk 0:02:34.2]} 18... Be6 {[%clk 0:02:49.3]} 19. Rfe1 {[%clk 0:01:56.4]}
19... Nc3 {[%clk 0:02:32.3]} 20. Rd2 {[%clk 0:01:46.5]} 20... Bxc4 {[%clk
0:02:29.6]} 21. bxc4 {[%clk 0:01:43.2]} 21... Rd6 {[%clk 0:02:29.1]} 22. Rc1
{[%clk 0:01:26.9]} 22... Nxa2 {[%clk 0:02:28.2]} 23. Rxa2 {[%clk 0:01:25.4]}
23... Rxd3 {[%clk 0:02:28]} 24. e4 {[%clk 0:01:25.9]} 24... Qc5+ {[%clk
0:02:26.8]} 25. Kh1 {[%clk 0:01:26.8]} 25... Rad8 {[%clk 0:02:26.4]} 26. Raa1
{[%clk 0:01:23.9]} 26... Qxc4 {[%clk 0:02:22.3]} 27. h4 {[%clk 0:01:20.7]} 27...
Qd4 {[%clk 0:02:09.2]} 28. h5 {[%clk 0:01:10.8]} 28... Qe5 {[%clk 0:02:08.6]}
29. hxg6 {[%clk 0:01:08.9]} 29... hxg6 {[%clk 0:02:08.9]} 30. Rf1 {[%clk
0:00:57]} 30... a6 {[%clk 0:01:52.3]} 31. Rab1 {[%clk 0:00:55.7]} 31... b5
{[%clk 0:01:50.4]} 32. Rbc1 {[%clk 0:00:55.1]} 32... R8d6 {[%clk 0:01:46.6]} 33.
Kg1 {[%clk 0:00:44.9]} 33... c5 {[%clk 0:01:43.2]} 34. f4 {[%clk 0:00:45.2]}
34... Qd4+ {[%clk 0:01:44.1]} 35. Kh1 {[%clk 0:00:45.5]} 35... Qxe4 {[%clk
0:01:43.5]} 36. Rxc5 {[%clk 0:00:42.2]} 36... Rd1 {[%clk 0:01:37.2]} 37. Rxd1
{[%clk 0:00:19.5]} 37... Rxd1+ {[%clk 0:01:37]} 38. Kh2 {[%clk 0:00:21.1]} 38...
Rd8 {[%clk 0:01:31.7]} 39. Re5 {[%clk 0:00:18.6]} 39... Qc6 {[%clk 0:01:27.4]}
40. Rh5 {[%clk 0:00:17.6]} 40... Qf6 {[%clk 0:01:24.4]} 41. Qh7+ {[%clk
0:00:11.3]} 41... Kf8 {[%clk 0:01:24.9]} 42. Qh6+ {[%clk 0:00:10.6]} 42... Qg7
{[%clk 0:01:25.7]} 43. Qg5 {[%clk 0:00:11.9]} 43... Re8 {[%clk 0:01:22.9]} 44.
Qc5+ {[%clk 0:00:12.9]} 44... Kg8 {[%clk 0:01:22.7]} 45. Rh3 {[%clk 0:00:13.7]}
45... Qf6 {[%clk 0:01:21]} 46. f5 {[%clk 0:00:13.4]} 46... Qxf5 {[%clk
0:01:15.8]} 47. Qc3 {[%clk 0:00:14.1]} 47... Qe5+ {[%clk 0:01:16.6]} 48. Qg3
{[%clk 0:00:13.4]} 48... Qxg3+ {[%clk 0:01:17.6]} 49. Rxg3 {[%clk 0:00:15.3]}
49... Re6 {[%clk 0:01:18.9]} 50. Rb3 {[%clk 0:00:16.4]} 50... Rb6 {[%clk
0:01:19.6]} 51. Ra3 {[%clk 0:00:18.3]} 51... b4 {[%clk 0:01:20.9]} 52. Rxa6
{[%clk 0:00:20]} 52... Rxa6 {[%clk 0:01:21.9]} 53. g4 {[%clk 0:00:21.9]} 53...
b3 {[%clk 0:01:22.9]} 54. Kg3 {[%clk 0:00:23.8]} 54... b2 {[%clk 0:01:24.1]} 55.
Kf4 {[%clk 0:00:25.7]} 55... b1=Q {[%clk 0:01:25.2]} 56. Kg5 {[%clk 0:00:27.6]}
56... Qc1+ {[%clk 0:01:25.8]} 57. Kh4 {[%clk 0:00:28.7]} 57... Qh6+ {[%clk
0:01:25.1]} 58. Kg3 {[%clk 0:00:29.7]} 58... Ra3+ {[%clk 0:01:27]} 59. Kg2
{[%clk 0:00:28.9]} 59... Qd2+ {[%clk 0:01:27.3]} 60. Kh1 {[%clk 0:00:30.8]}
60... Ra1# {[%clk 0:00:41.6]} 0-1

[Event "*** Titled Tuesday Blitz"]
[Site "Chess.com"]
[Date "2020.02.04"]
[Round "9"]
[White "Kislov_Oleg"]
[Black "Chigorinetz"]
[Result "0-1"]
[WhiteElo "2513"]
[BlackElo "2583"]
[TimeControl "180+2"]
[EndTime "15:10:10 PST"]
[Termination "Chigorinetz won by resignation"]

1. e4 {[%clk 0:02:57.6]} 1... c5 {[%clk 0:03:00.6]} 2. Nf3 {[%clk 0:02:57.5]}
2... Nc6 {[%clk 0:03:01.2]} 3. c3 {[%clk 0:02:58.4]} 3... d5 {[%clk 0:03:01.3]}
4. exd5 {[%clk 0:02:59.2]} 4... Qxd5 {[%clk 0:03:02.5]} 5. d4 {[%clk 0:03:01.1]}
5... cxd4 {[%clk 0:03:02.8]} 6. cxd4 {[%clk 0:03:02.1]} 6... e5 {[%clk
0:03:03.6]} 7. Nxe5 {[%clk 0:02:52.5]} 7... Nxd4 {[%clk 0:02:44]} 8. Qa4+ {[%clk
0:02:02]} 8... b5 {[%clk 0:02:41.5]} 9. Bxb5+ {[%clk 0:01:57]} 9... Nxb5 {[%clk
0:02:34]} 10. O-O {[%clk 0:01:55.7]} 10... Qxe5 {[%clk 0:02:11.8]} 11. Bd2
{[%clk 0:01:36.3]} 11... Be7 {[%clk 0:01:47.3]} 12. Bc3 {[%clk 0:01:35.2]} 12...
Qg5 {[%clk 0:01:29.7]} 13. h4 {[%clk 0:01:33.7]} 13... Qg6 {[%clk 0:01:30]} 14.
Qxb5+ {[%clk 0:01:29.5]} 14... Bd7 {[%clk 0:01:30.4]} 15. Qe5 {[%clk 0:01:30.1]}
15... Nf6 {[%clk 0:01:20.7]} 16. Re1 {[%clk 0:01:27.4]} 16... Be6 {[%clk
0:01:14.1]} 17. Qb5+ {[%clk 0:01:12.5]} 17... Nd7 {[%clk 0:01:14.4]} 18. h5
{[%clk 0:01:04.6]} 18... Qf5 {[%clk 0:01:14.3]} 19. Qxf5 {[%clk 0:00:57.8]}
19... Bxf5 {[%clk 0:01:13.9]} 20. Bxg7 {[%clk 0:00:59.3]} 20... Rg8 {[%clk
0:01:13.8]} 21. h6 {[%clk 0:00:59.8]} 21... Be6 {[%clk 0:01:13.8]} 22. Nc3
{[%clk 0:00:58.4]} 22... Rb8 {[%clk 0:01:06.2]} 23. b3 {[%clk 0:00:56]} 23...
Bf6 {[%clk 0:01:01.4]} 24. Bxf6 {[%clk 0:00:34.6]} 24... Nxf6 {[%clk 0:01:01.5]}
25. Rad1 {[%clk 0:00:26.9]} 25... Ke7 {[%clk 0:00:55.9]} 26. f4 {[%clk
0:00:24.9]} 26... Rbc8 {[%clk 0:00:44.2]} 27. Nd5+ {[%clk 0:00:21.1]} 27... Nxd5
{[%clk 0:00:43.6]} 28. Rxd5 {[%clk 0:00:21.7]} 28... Kf6 {[%clk 0:00:40.6]} 29.
Rd2 {[%clk 0:00:20]} 29... Rg4 {[%clk 0:00:35.2]} 30. Re4 {[%clk 0:00:17.9]}
30... Rc3 {[%clk 0:00:30.7]} 31. Kf2 {[%clk 0:00:11.7]} 31... Kg6 {[%clk
0:00:28.4]} 32. Rd6 {[%clk 0:00:08.7]} 32... Kxh6 {[%clk 0:00:23.4]} 33. Re3
{[%clk 0:00:06.7]} 33... Rc2+ {[%clk 0:00:21.5]} 34. Kf3 {[%clk 0:00:08]} 34...
Rcxg2 {[%clk 0:00:19.7]} 35. f5 {[%clk 0:00:09.3]} 35... Kg5 {[%clk 0:00:16.3]}
36. fxe6 {[%clk 0:00:09.4]} 36... R4g3+ {[%clk 0:00:13.2]} 37. Ke4 {[%clk
0:00:10.3]} 37... Rxe3+ {[%clk 0:00:13.3]} 38. Kxe3 {[%clk 0:00:11.7]} 38...
fxe6 {[%clk 0:00:14.2]} 39. Rxe6 {[%clk 0:00:12.8]} 39... Rxa2 {[%clk
0:00:15.5]} 40. Re5+ {[%clk 0:00:12.5]} 40... Kg4 {[%clk 0:00:15.8]} 41. Re7
{[%clk 0:00:12.3]} 41... h5 {[%clk 0:00:16.2]} 42. Rg7+ {[%clk 0:00:13.2]} 42...
Kh3 {[%clk 0:00:16.5]} 43. Kf3 {[%clk 0:00:09.4]} 43... Ra3 {[%clk 0:00:15.4]}
44. Kf2 {[%clk 0:00:09.2]} 44... a5 {[%clk 0:00:13.8]} 45. Rg5 {[%clk
0:00:09.8]} 45... h4 {[%clk 0:00:12.8]} 46. Rh5 {[%clk 0:00:11]} 46... Kg4
{[%clk 0:00:11.4]} 47. Rb5 {[%clk 0:00:10.4]} 47... Ra2+ {[%clk 0:00:12.1]} 48.
Kf1 {[%clk 0:00:10.6]} 48... h3 {[%clk 0:00:13]} 49. Rb8 {[%clk 0:00:11.5]}
49... h2 {[%clk 0:00:13.3]} 50. Rg8+ {[%clk 0:00:11.4]} 50... Kf3 {[%clk
0:00:13.2]} 51. Rf8+ {[%clk 0:00:11.6]} 51... Ke3 {[%clk 0:00:13.7]} 52. Re8+
{[%clk 0:00:12.8]} 52... Kd3 {[%clk 0:00:14.3]} 53. Rh8 {[%clk 0:00:14.3]} 53...
Kc3 {[%clk 0:00:14.2]} 54. Rh3+ {[%clk 0:00:15.2]} 54... Kb4 {[%clk 0:00:15]}
55. Ke1 {[%clk 0:00:15.8]} 55... h1=Q+ {[%clk 0:00:13.9]} 56. Rxh1 {[%clk
0:00:16.5]} 56... Ra1+ {[%clk 0:00:14.7]} 0-1

[Event "*** Titled Tuesday Blitz"]
[Site "Chess.com"]
[Date "2020.02.04"]
[Round "9"]
[White "IMTominho"]
[Black "Sanan_Sjugirov"]
[Result "1-0"]
[WhiteElo "2828"]
[BlackElo "2839"]
[TimeControl "180+2"]
[EndTime "15:10:13 PST"]
[Termination "IMTominho won by resignation"]

1. d4 {[%clk 0:03:01.9]} 1... Nf6 {[%clk 0:03:00.5]} 2. Nf3 {[%clk 0:02:59]}
2... g6 {[%clk 0:02:59.1]} 3. Bf4 {[%clk 0:02:58.9]} 3... Bg7 {[%clk 0:02:59.9]}
4. e3 {[%clk 0:02:58.7]} 4... O-O {[%clk 0:03:00.6]} 5. Be2 {[%clk 0:02:57.2]}
5... d6 {[%clk 0:03:01.7]} 6. h3 {[%clk 0:02:54.4]} 6... b6 {[%clk 0:03:02.4]}
7. Bh2 {[%clk 0:02:52.7]} 7... Bb7 {[%clk 0:03:03.5]} 8. O-O {[%clk 0:02:52.6]}
8... Nbd7 {[%clk 0:03:04]} 9. c4 {[%clk 0:02:50.7]} 9... Ne4 {[%clk 0:03:00.7]}
10. Nbd2 {[%clk 0:02:48.6]} 10... Nxd2 {[%clk 0:02:54]} 11. Nxd2 {[%clk
0:02:49.6]} 11... e5 {[%clk 0:02:54.3]} 12. d5 {[%clk 0:02:45.3]} 12... a5
{[%clk 0:02:49.3]} 13. a3 {[%clk 0:02:37.6]} 13... a4 {[%clk 0:02:49.1]} 14. Ne4
{[%clk 0:02:37.3]} 14... f5 {[%clk 0:02:45.1]} 15. Nc3 {[%clk 0:02:37.8]} 15...
Nc5 {[%clk 0:02:46.3]} 16. Qc2 {[%clk 0:02:34.4]} 16... Bc8 {[%clk 0:02:45]} 17.
f3 {[%clk 0:02:29.5]} 17... Bd7 {[%clk 0:02:44.9]} 18. Kh1 {[%clk 0:02:26.8]}
18... Qg5 {[%clk 0:02:43.7]} 19. Bg1 {[%clk 0:02:12.1]} 19... Qe7 {[%clk
0:02:42.1]} 20. Rae1 {[%clk 0:02:07.9]} 20... e4 {[%clk 0:02:33]} 21. f4 {[%clk
0:02:08.8]} 21... h6 {[%clk 0:02:08.1]} 22. Bf2 {[%clk 0:02:03.4]} 22... Bf6
{[%clk 0:02:02.7]} 23. Rg1 {[%clk 0:01:57.6]} 23... h5 {[%clk 0:02:02.1]} 24. g3
{[%clk 0:01:51.4]} 24... Qg7 {[%clk 0:02:00.8]} 25. Rc1 {[%clk 0:01:46.4]} 25...
Nb3 {[%clk 0:02:01.1]} 26. Rcd1 {[%clk 0:01:44.1]} 26... Kf7 {[%clk 0:01:51.4]}
27. Be1 {[%clk 0:01:38.2]} 27... Rh8 {[%clk 0:01:49.2]} 28. Kh2 {[%clk
0:01:33.5]} 28... Nc5 {[%clk 0:01:47.6]} 29. Rc1 {[%clk 0:01:30.3]} 29... Ke7
{[%clk 0:01:47.6]} 30. Rd1 {[%clk 0:01:26.6]} 30... g5 {[%clk 0:01:44]} 31. h4
{[%clk 0:01:18.8]} 31... gxh4 {[%clk 0:01:34.5]} 32. gxh4 {[%clk 0:01:20.7]}
32... Qf7 {[%clk 0:01:35.2]} 33. Rg5 {[%clk 0:01:14.9]} 33... Bxg5 {[%clk
0:01:33.5]} 34. fxg5 {[%clk 0:01:14.3]} 34... f4 {[%clk 0:01:31.6]} 35. exf4
{[%clk 0:01:16.2]} 35... Qf5 {[%clk 0:01:26.7]} 36. Bf1 {[%clk 0:01:10.8]} 36...
Qxf4+ {[%clk 0:01:09.3]} 37. Bg3 {[%clk 0:01:05.9]} 37... Qg4 {[%clk 0:01:09.6]}
38. Re1 {[%clk 0:01:05.2]} 38... Raf8 {[%clk 0:01:01.9]} 39. Nxe4 {[%clk
0:01:00.3]} 39... Kd8 {[%clk 0:00:30.7]} 40. Nf6 {[%clk 0:01:00.8]} 40... Qd4
{[%clk 0:00:25.3]} 41. Rd1 {[%clk 0:00:56.1]} 41... Qe3 {[%clk 0:00:23.6]} 42.
Re1 {[%clk 0:00:53.9]} 42... Qb3 {[%clk 0:00:19.5]} 43. Qf2 {[%clk 0:00:50.3]}
43... Nd3 {[%clk 0:00:13.9]} 44. Bxd3 {[%clk 0:00:49.5]} 44... Qxd3 {[%clk
0:00:15.8]} 45. Re3 {[%clk 0:00:39.3]} 45... Qxc4 {[%clk 0:00:12.4]} 46. Bf4
{[%clk 0:00:40.4]} 46... Rf7 {[%clk 0:00:08.3]} 47. Rc3 {[%clk 0:00:34.4]} 47...
Qb5 {[%clk 0:00:06.4]} 48. Kg1 {[%clk 0:00:29.9]} 48... Re7 {[%clk 0:00:04.4]}
49. g6 {[%clk 0:00:25.2]} 49... Rf8 {[%clk 0:00:04.4]} 50. Bh6 {[%clk
0:00:21.6]} 50... Rxf6 {[%clk 0:00:03.2]} 51. Qxf6 {[%clk 0:00:23.5]} 51... Qxb2
{[%clk 0:00:04]} 52. g7 {[%clk 0:00:20.1]} 52... Qb1+ {[%clk 0:00:05.2]} 53. Rc1
{[%clk 0:00:18.1]} 53... Qh7 {[%clk 0:00:06.1]} 54. Bg5 {[%clk 0:00:15]} 54...
Kc8 {[%clk 0:00:05.9]} 55. Qxe7 {[%clk 0:00:15.8]} 1-0

[Event "*** Titled Tuesday Blitz"]
[Site "Chess.com"]
[Date "2020.02.04"]
[Round "9"]
[White "King_of_the_wing"]
[Black "earling8018"]
[Result "0-1"]
[WhiteElo "2025"]
[BlackElo "2054"]
[TimeControl "180+2"]
[EndTime "15:10:19 PST"]
[Termination "earling8018 won by resignation"]

1. e4 {[%clk 0:03:01.9]} 1... e5 {[%clk 0:03:00.7]} 2. Nf3 {[%clk 0:03:02.6]}
2... Nc6 {[%clk 0:03:00.7]} 3. c3 {[%clk 0:03:03.8]} 3... d6 {[%clk 0:02:56.7]}
4. d4 {[%clk 0:03:04.4]} 4... Bd7 {[%clk 0:02:56.3]} 5. Bb5 {[%clk 0:02:59.7]}
5... Nf6 {[%clk 0:02:53.4]} 6. Bg5 {[%clk 0:02:42.5]} 6... Be7 {[%clk
0:02:54.1]} 7. Nbd2 {[%clk 0:02:39.9]} 7... O-O {[%clk 0:02:41.7]} 8. Bxc6
{[%clk 0:02:21]} 8... Bxc6 {[%clk 0:02:38.8]} 9. dxe5 {[%clk 0:02:11]} 9... Nxe4
{[%clk 0:02:38.7]} 10. Bxe7 {[%clk 0:02:10]} 10... Qxe7 {[%clk 0:02:38.7]} 11.
exd6 {[%clk 0:02:02.8]} 11... Qxd6 {[%clk 0:01:52.4]} 12. Nxe4 {[%clk
0:01:42.7]} 12... Qxd1+ {[%clk 0:01:45.3]} 13. Rxd1 {[%clk 0:01:43.1]} 13...
Bxe4 {[%clk 0:01:45]} 14. Rd7 {[%clk 0:01:42.7]} 14... Rac8 {[%clk 0:01:20.5]}
15. O-O {[%clk 0:01:36.4]} 15... Bc6 {[%clk 0:01:08.4]} 16. Re7 {[%clk
0:01:35.9]} 16... Rfe8 {[%clk 0:01:07.4]} 17. Rfe1 {[%clk 0:01:36.6]} 17... Kf8
{[%clk 0:01:05.5]} 18. Rxe8+ {[%clk 0:01:36.5]} 18... Rxe8 {[%clk 0:01:04.8]}
19. Rxe8+ {[%clk 0:01:36.7]} 19... Kxe8 {[%clk 0:00:56]} 20. Ne5 {[%clk
0:01:33.5]} 20... Bd5 {[%clk 0:00:51.9]} 21. c4 {[%clk 0:01:34.6]} 21... Be6
{[%clk 0:00:50.7]} 22. b3 {[%clk 0:01:34.6]} 22... f6 {[%clk 0:00:51.2]} 23. Nf3
{[%clk 0:01:35.5]} 23... Ke7 {[%clk 0:00:47.5]} 24. Nd4 {[%clk 0:01:33.8]} 24...
Bd7 {[%clk 0:00:48.5]} 25. f4 {[%clk 0:01:34.8]} 25... Kd6 {[%clk 0:00:42]} 26.
Kf2 {[%clk 0:01:33]} 26... Kc5 {[%clk 0:00:37.7]} 27. Nc2 {[%clk 0:01:32]} 27...
Bf5 {[%clk 0:00:32.5]} 28. Ne3 {[%clk 0:01:32.3]} 28... Bb1 {[%clk 0:00:31.2]}
29. a3 {[%clk 0:01:33.4]} 29... Kd4 {[%clk 0:00:31.2]} 30. Nd5 {[%clk 0:01:30]}
30... c6 {[%clk 0:00:29.3]} 31. Nc7 {[%clk 0:01:12.2]} 31... Ba2 {[%clk
0:00:19.5]} 32. Ne6+ {[%clk 0:01:11.8]} 32... Ke4 {[%clk 0:00:19.3]} 33. Nxg7
{[%clk 0:01:12.1]} 33... Bxb3 {[%clk 0:00:17.8]} 34. c5 {[%clk 0:01:10.2]} 34...
Kxf4 {[%clk 0:00:16.5]} 35. Ne8 {[%clk 0:01:11.3]} 35... Ke5 {[%clk 0:00:15.2]}
36. Nd6 {[%clk 0:01:12.3]} 36... b6 {[%clk 0:00:12]} 37. cxb6 {[%clk 0:01:10.2]}
37... axb6 {[%clk 0:00:13.5]} 38. Nc8 {[%clk 0:01:11.5]} 38... b5 {[%clk
0:00:13.3]} 39. Ke3 {[%clk 0:01:05.5]} 39... c5 {[%clk 0:00:11.8]} 40. Na7
{[%clk 0:01:00.4]} 40... Bc4 {[%clk 0:00:10.7]} 41. g4 {[%clk 0:00:56.4]} 41...
Kd5 {[%clk 0:00:09.6]} 42. h4 {[%clk 0:00:53.7]} 42... b4 {[%clk 0:00:10.3]} 43.
axb4 {[%clk 0:00:53.3]} 43... cxb4 {[%clk 0:00:11.9]} 44. Kd2 {[%clk 0:00:54.5]}
44... Ke4 {[%clk 0:00:08.8]} 45. Nc6 {[%clk 0:00:49.4]} 45... b3 {[%clk
0:00:08]} 46. g5 {[%clk 0:00:48.4]} 46... fxg5 {[%clk 0:00:08]} 47. hxg5 {[%clk
0:00:49.5]} 47... Kf5 {[%clk 0:00:07.8]} 48. Kc3 {[%clk 0:00:41.9]} 48... Bf7
{[%clk 0:00:06.6]} 49. Nd4+ {[%clk 0:00:14.9]} 49... Kxg5 {[%clk 0:00:07.1]} 50.
Nf3+ {[%clk 0:00:12.7]} 50... Kf4 {[%clk 0:00:07.3]} 51. Nd4 {[%clk 0:00:12.8]}
51... h5 {[%clk 0:00:07.8]} 52. Ne2+ {[%clk 0:00:13.6]} 52... Kg4 {[%clk
0:00:07.6]} 0-1